bitfinex/quotes_ETHUSD_20250504
["timestamp","ask_amount","ask_price","bid_price","bid_amount"]
[1746341877148,0.50694709,1847.8,1847.7,5.87640186]
[1746341878383,0.50694709,1847.8,1847.7,4.522]
[1746341878586,6.75008819,1847.8,1847.7,4.522]
[1746341878785,0.50694709,1847.8,1847.7,4.522]
[1746341883424,0.50760197,1847.8,1847.7,4.522]
[1746341883602,5.91944307,1847.8,1847.7,4.522]
[1746341883789,7.9592958,1847.8,1847.7,4.522]
[1746341885397,7.7592958,1847.8,1847.7,4.522]
[1746341885708,6.54304307,1847.8,1847.7,4.522]
[1746341890230,1.13120197,1847.8,1847.7,4.522]
[1746341890929,6.54304307,1847.8,1847.7,4.522]
[1746341897408,6.54304307,1847.8,1847.6,1.35440186]
[1746341898437,0.30760197,1847.7,1847.6,1.35440186]
[1746341899540,0.30760197,1847.7,1847.6,8.21799192]
[1746341905551,0.30760197,1847.7,1847.6,8.16386898]
[1746341906451,0.30760197,1847.7,1847.6,8.21798733]
[1746341906963,0.30760197,1847.7,1847.6,12.73298733]
[1746341907252,0.30760197,1847.7,1847.6,12.67886898]
[1746341917060,0.30760197,1847.7,1847.6,7.26644205]
[1746341919571,0.30760197,1847.7,1847.6,12.67886898]
[1746341928471,5.41085291,1848.2,1847.7,5.41186289]
[1746341928636,5.41085291,1848.2,1848.0,1.35440186]
[1746341928963,5.41096261,1848.1,1848.0,1.35440186]
[1746341929165,5.91873631,1848.1,1847.9,1.35440186]
[1746341929831,0.5077737,1848.0,1847.9,1.35440186]
[1746341931179,5.91902911,1848.0,1847.6,5.91204019]
[1746341931351,6.18082973,1847.9,1847.6,5.86940186]
[1746341931665,6.68860343,1847.9,1847.6,5.86940186]
[1746341932035,0.50786956,1847.8,1847.6,5.86940186]
[1746341932468,0.50786956,1847.7,1847.6,5.86940186]
[1746341932773,0.50786956,1847.7,1847.6,6.99760835]
[1746341941314,0.50786956,1847.7,1847.6,7.82752636]
[1746341941508,0.50786956,1847.7,1847.6,13.23995329]
[1746341941711,0.50786956,1847.7,1847.6,13.18583528]
[1746341951091,0.50786956,1847.7,1847.6,7.77340835]
[1746341951427,0.50786956,1847.7,1847.6,6.99760835]
[1746341951590,0.50786956,1847.7,1847.6,5.86940186]
[1746341953509,0.50786956,1847.7,1847.6,4.515]
[1746341953702,0.50786956,1847.7,1847.6,5.86940186]
[1746341953930,0.50786956,1847.7,1847.6,11.33594698]
[1746341954118,0.50786956,1847.7,1847.6,12.06432879]
[1746341954319,0.50786956,1847.7,1847.6,13.81201393]
[1746341954624,0.50786956,1847.7,1847.6,9.29701393]
[1746341954828,0.50786956,1847.7,1847.6,13.80801393]
[1746341956248,0.50786956,1847.7,1847.6,7.613087]
[1746341957748,0.50786956,1847.7,1847.6,13.02551393]
[1746341961046,0.50786956,1847.7,1847.6,7.613087]
[1746341964366,0.50786956,1847.7,1847.6,13.02551393]
[1746341967194,0.50786956,1847.7,1847.6,7.613087]
[1746341967381,0.50786956,1847.7,1847.6,5.86540186]
[1746341973620,0.50786956,1847.7,1847.6,11.27782879]
[1746341974220,0.50786956,1847.7,1847.6,5.86540186]
[1746341975533,0.50786956,1847.7,1847.6,11.27782879]
[1746341975692,0.50786956,1847.7,1847.6,12.06252879]
[1746341975895,0.50786956,1847.7,1847.6,13.81003339]
[1746341981745,0.7959,1848.1,1847.7,5.41190058]
[1746341981918,0.7959,1848.1,1847.9,1.35440186]
[1746341982116,0.50764554,1848.0,1847.9,1.35440186]
[1746341989121,0.50764554,1848.0,1847.9,6.7659501]
[1746341989322,0.50764554,1848.0,1847.9,7.9837259]
[1746341991512,0.50764554,1848.0,1847.9,8.7729259]
[1746341993543,0.50764554,1848.0,1847.9,8.82703288]
[1746341994663,0.50764554,1848.0,1847.9,9.23064547]
[1746341995068,0.50764554,1848.0,1847.9,2.97579025]
[1746341995665,0.50764554,1848.0,1847.9,8.38733849]
[1746341996868,0.50764554,1848.0,1847.9,8.44144626]
[1746341997270,0.50764554,1848.0,1847.9,9.22014626]
[1746341997458,0.8303,1848.4,1848.1,5.41089562]
[1746341997765,0.8303,1848.4,1848.2,1.35440186]
[1746341997934,0.50685106,1848.3,1848.2,1.35440186]
[1746341998134,0.50685106,1848.3,1848.2,6.7650717]
[1746341998335,0.50685106,1848.3,1848.2,1.35440186]
[1746341998534,0.50685106,1848.3,1848.2,6.7650717]
[1746341998860,0.50685106,1848.3,1848.2,8.4874622]
[1746341999570,0.50685106,1848.3,1848.2,7.13306034]
[1746341999933,0.50685106,1848.3,1848.2,1.7223905]
[1746342001694,0.50685106,1848.3,1848.2,7.18715836]
[1746342001841,0.50685106,1848.3,1848.2,7.95615836]
[1746342002038,3.63687854,1848.5,1848.2,13.3668282]
[1746342002346,3.63687854,1848.5,1848.2,7.13306034]
[1746342002547,0.50645288,1848.4,1848.2,7.13306034]
[1746342002950,3.63687854,1848.5,1848.2,7.13306034]
[1746342003154,3.63687854,1848.5,1848.1,12.80773963]
[1746342003155,0.8241,1848.4,1848.1,6.08683487]
[1746342003385,0.50646591,1848.3,1848.1,11.49776154]
[1746342003778,0.8241,1848.4,1848.1,11.49776154]
[1746342004898,0.50646992,1848.3,1848.1,11.49776154]
[1746342005257,0.8241,1848.4,1848.1,11.49776154]
[1746342005663,1.44750964,1848.4,1848.1,11.49776154]
[1746342005881,1.44750964,1848.4,1848.1,6.08683487]
[1746342006063,6.85762936,1848.4,1848.1,6.08683487]
[1746342006267,0.5064837,1848.3,1848.1,6.08683487]
[1746342006658,0.8241,1848.4,1848.1,4.507]
[1746342006895,6.23431206,1848.4,1848.1,4.507]
[1746342007063,0.8241,1848.4,1848.1,4.507]
[1746342007264,0.8241,1848.4,1848.1,9.97196677]
[1746342007580,0.5064874,1848.3,1848.1,9.97196677]
[1746342007812,0.8241,1848.4,1848.1,9.97196677]
[1746342008810,0.50650278,1848.3,1848.1,9.97196677]
[1746342009581,0.8241,1848.4,1848.1,9.97196677]
[1746342010282,0.50652571,1848.3,1848.1,9.97196677]
[1746342010796,0.8241,1848.4,1848.1,9.97196677]
[1746342011311,6.17365879,1848.5,1848.1,10.74286677]
[1746342011617,6.17365879,1848.5,1848.2,1.57983487]
[1746342011779,0.50657543,1848.4,1848.2,1.57983487]
[1746342012117,0.7637,1848.7,1848.2,8.8124815]
[1746342012303,0.50651415,1848.6,1848.2,7.04445495]
[1746342012878,0.50651415,1848.5,1848.2,7.04437208]
[1746342013299,0.50651415,1848.5,1848.3,5.41034249]
[1746342013920,0.50651415,1848.4,1848.3,6.27523909]
[1746342015019,0.7637,1848.7,1848.4,5.41003404]
[1746342015387,0.50647428,1848.6,1848.4,5.46412746]
[1746342015825,0.50647428,1848.5,1848.4,5.46412746]
[1746342016899,0.50647428,1848.5,1848.4,7.04396233]
[1746342017398,0.50647428,1848.5,1848.4,1.57983487]
[1746342017600,0.50647428,1848.5,1848.4,6.98991926]
[1746342017797,0.50647428,1848.5,1848.4,7.40426278]
[1746342018117,6.22227098,1848.8,1848.4,7.40426278]
[1746342018517,0.50651636,1848.7,1848.4,7.40426278]
[1746342019027,0.50651636,1848.6,1848.4,7.40426278]
[1746342019201,0.50651636,1848.6,1848.4,8.76679525]
[1746342019412,6.22227098,1848.8,1848.4,8.76679525]
[1746342019593,6.22227098,1848.8,1848.4,7.40426278]
[1746342019792,0.5065016,1848.7,1848.4,1.99417839]
[1746342020317,0.5065016,1848.6,1848.4,1.99417839]
[1746342021006,5.40921231,1848.7,1848.4,1.99417839]
[1746342021639,5.40921231,1848.7,1848.4,1.76821397]
[1746342022017,0.50651749,1848.6,1848.4,1.76821397]
[1746342022394,5.40921231,1848.7,1848.4,1.76821397]
[1746342023539,0.50658889,1848.6,1848.4,1.76821397]
[1746342023744,0.50658889,1848.6,1848.4,2.56713431]
[1746342024044,0.50658889,1848.5,1848.4,2.56713431]
[1746342024413,5.40921231,1848.7,1848.4,2.56713431]
[1746342024947,0.50663992,1848.6,1848.4,2.56713431]
[1746342025547,5.40921231,1848.7,1848.4,2.56713431]
[1746342026470,0.50675561,1848.6,1848.4,2.56713431]
[1746342026841,0.50675561,1848.5,1848.4,2.56713431]
[1746342029448,0.50675561,1848.5,1848.4,7.06613431]
[1746342030653,0.50675561,1848.5,1848.4,12.53031158]
[1746342030827,0.50675561,1848.5,1848.4,12.4762187]
[1746342031155,0.50675561,1848.5,1848.4,7.06613431]
[1746342033991,5.40921015,1848.7,1848.4,7.06613431]
[1746342034178,5.40921015,1848.7,1848.4,6.26721397]
[1746342034385,0.5068492,1848.6,1848.4,6.26721397]
[1746342034781,0.5068492,1848.5,1848.4,6.26721397]
[1746342039059,0.5068492,1848.5,1848.4,11.73139143]
[1746342039258,0.5068492,1848.5,1848.4,11.67729836]
[1746342039573,0.5068492,1848.5,1848.4,13.46712224]
[1746342044103,0.5068492,1848.5,1848.4,8.05703785]
[1746342047008,0.5068492,1848.5,1848.4,13.52121539]
[1746342047299,0.5068492,1848.5,1848.4,13.46712224]
[1746342051813,0.5053492,1848.5,1848.4,13.46712224]
[1746342052523,0.8132,1848.8,1848.5,5.40973361]
[1746342052684,0.8132,1848.8,1848.6,1.35387045]
[1746342052896,6.22212797,1848.8,1848.6,1.35387045]
[1746342053931,0.8132,1848.8,1848.6,1.35387045]
[1746342054821,0.74153016,1848.8,1848.6,1.35387045]
[1746342055528,6.15047414,1848.8,1848.6,1.35387045]
[1746342055729,0.74153016,1848.8,1848.6,1.35387045]
[1746342057821,0.30442659,1848.7,1848.6,1.35387045]
[1746342058434,5.71373686,1848.7,1848.5,3.24155603]
[1746342058616,0.30442659,1848.6,1848.4,6.26721397]
[1746342058818,0.30442659,1848.6,1848.5,1.35387045]
[1746342059132,0.30442659,1848.6,1848.5,5.85287045]
[1746342059430,0.30445906,1848.6,1848.5,4.499]
[1746342060210,0.30445906,1848.6,1848.5,5.48998224]
[1746342062011,0.30445906,1848.6,1848.5,4.499]
[1746342062210,5.71395814,1848.6,1848.5,4.499]
[1746342062533,6.53515814,1848.6,1848.5,4.499]
[1746342063639,1.12565906,1848.6,1848.5,4.499]
[1746342064241,0.81189213,1848.6,1848.5,5.85287045]
[1746342064532,0.81189213,1848.6,1848.5,7.02599565]
[1746342064938,0.81189213,1848.6,1848.5,12.43578737]
[1746342065139,0.50743307,1848.6,1848.5,12.43578737]
[1746342072483,0.50743307,1848.6,1848.5,5.6721252]
[1746342072772,0.50743307,1848.6,1848.5,5.85287045]
[1746342073380,0.81190816,1848.6,1848.5,5.85287045]
[1746342073978,6.22140724,1848.6,1848.5,4.499]
[1746342074186,0.81190816,1848.6,1848.5,4.499]
[1746342077061,6.22140724,1848.6,1848.5,4.499]
[1746342077259,8.29361476,1848.6,1848.5,4.499]
[1746342082759,6.20272573,1848.4,1848.2,5.84887045]
[1746342082984,0.81190816,1848.6,1848.4,5.40994971]
[1746342083295,0.7924,1848.7,1848.5,1.89486542]
[1746342083595,6.18094868,1848.8,1848.6,1.35387045]
[1746342083968,0.50682293,1848.7,1848.6,1.35387045]
[1746342084166,0.81091709,1848.7,1848.6,1.35387045]
[1746342084375,0.81091709,1848.7,1848.6,12.61223998]
[1746342084904,0.81091709,1848.7,1848.6,11.25836953]
[1746342085066,0.50682293,1848.7,1848.6,13.00266816]
[1746342085463,3.63687854,1848.9,1848.6,18.63711521]
[1746342085699,3.63687854,1848.9,1848.6,13.22761613]
[1746342086099,0.50672627,1848.8,1848.6,13.22761613]
[1746342086628,3.63687854,1848.9,1848.6,13.22761613]
[1746342087165,3.63687854,1848.9,1848.6,13.62608206]
[1746342087366,15.2252646,1849.1,1848.6,13.62608206]
[1746342087565,0.50663209,1849.0,1848.6,13.62608206]
[1746342087965,0.50663209,1848.9,1848.6,13.62608206]
[1746342088410,0.50663209,1848.8,1848.6,13.62608206]
[1746342088904,0.50663209,1848.7,1848.6,13.62608206]
[1746342089977,9.81696586,1849.1,1848.6,13.62608206]
[1746342090179,9.81696586,1849.1,1848.6,13.62587314]
[1746342090423,9.81696586,1849.1,1848.6,13.62586312]
[1746342090680,0.81050305,1849.0,1848.7,6.77179254]
[1746342090909,0.50656722,1848.9,1848.7,6.77179254]
[1746342091110,0.50656722,1848.9,1848.7,1.36258631]
[1746342091422,0.50656722,1848.8,1848.7,1.36258631]
[1746342091628,1.31796722,1848.8,1848.6,4.495]
[1746342092083,0.50656722,1848.7,1848.6,4.495]
[1746342092416,0.50656722,1848.7,1848.6,9.95858896]
[1746342092720,0.50656722,1848.7,1848.6,9.90449908]
[1746342092942,6.21986814,1849.0,1848.6,11.71125132]
[1746342093073,0.30392399,1848.9,1848.6,11.71125132]
[1746342093270,0.81046403,1848.9,1848.6,11.71125132]
[1746342093727,0.50654004,1848.8,1848.6,11.71125132]
[1746342094095,6.21986814,1849.0,1848.6,11.71125132]
[1746342094515,0.50650917,1848.9,1848.6,11.71125132]
[1746342094701,0.50650917,1848.9,1848.7,1.17112513]
[1746342095142,0.50650917,1848.8,1848.7,1.17112513]
[1746342097144,0.50650917,1848.8,1848.6,4.495]
[1746342097742,0.50650917,1848.7,1848.6,4.495]
[1746342109435,5.40987668,1848.5,1848.4,4.491]
[1746342110069,6.22053227,1848.5,1848.4,4.491]
[1746342110978,0.81065559,1848.5,1848.4,4.491]
[1746342111463,6.22044731,1848.5,1848.4,4.491]
[1746342112343,7.3834597,1848.5,1848.4,4.491]
[1746342112567,8.1396597,1848.5,1848.4,4.491]
[1746342113464,6.97664731,1848.5,1848.4,4.491]
[1746342116731,0.81065559,1848.5,1848.4,4.491]
[1746342117763,0.50650917,1848.5,1848.4,5.2484]
[1746342117928,0.50650917,1848.5,1848.4,10.65848439]
[1746342118128,0.50650917,1848.5,1848.4,5.2484]
[1746342118371,0.50650917,1848.5,1848.4,11.88222365]
[1746342118872,0.50650917,1848.5,1848.4,6.47213926]
[1746342119032,0.50650917,1848.5,1848.4,11.88222365]
[1746342119969,5.40907891,1848.8,1848.4,11.88222365]
[1746342120173,0.3039139,1848.7,1848.6,1.57881842]
[1746342120731,0.81041983,1848.7,1848.6,1.57881842]
[1746342126587,0.50650593,1848.7,1848.6,1.57881842]
[1746342127045,0.50650593,1848.7,1848.6,2.27767717]
[1746342128191,0.50650593,1848.7,1848.6,8.48567625]
[1746342128677,5.40836316,1849.0,1848.6,8.48567625]
[1746342128880,0.50664113,1848.9,1848.8,1.57881842]
[1746342129081,0.50664113,1848.9,1848.8,6.06781842]
[1746342129451,0.8106109,1848.9,1848.8,6.06781842]
[1746342130366,0.8106109,1848.9,1848.8,13.42293064]
[1746342130890,0.50664113,1848.9,1848.8,8.01401675]
[1746342131192,0.50664113,1848.9,1848.8,13.47701318]
[1746342131495,0.50664113,1848.9,1848.8,13.8277783]
[1746342131654,9.04479311,1849.2,1848.8,13.8277783]
[1746342131854,9.04479311,1849.2,1848.8,12.68007997]
[1746342132055,0.50639886,1849.1,1848.8,12.68007997]
[1746342133055,0.50639886,1849.0,1848.8,12.68007997]
[1746342133254,5.40779661,1849.2,1848.8,12.67997795]
[1746342133754,0.50616836,1849.1,1848.8,12.67997795]
[1746342133964,0.50616836,1849.1,1848.9,1.26799779]
[1746342134167,5.40777684,1849.2,1849.0,1.57881842]
[1746342135094,0.50604633,1849.1,1849.0,1.57881842]
[1746342137403,0.50604633,1849.1,1848.8,11.10111396]
[1746342137404,5.40862134,1848.9,1848.8,4.489]
[1746342137557,1.30466213,1848.9,1848.5,4.489]
[1746342137759,5.40932459,1848.7,1848.5,4.489]
[1746342138073,0.50604633,1848.6,1848.5,4.489]
[1746342142507,6.67364541,1848.6,1848.5,4.489]
[1746342143026,6.97728186,1848.6,1848.5,4.489]
[1746342152919,5.41008439,1848.4,1848.3,1.57881842]
[1746342153284,5.91613072,1848.4,1848.3,1.57881842]
[1746342153922,0.50604633,1848.4,1848.3,1.57881842]
[1746342155295,5.4099356,1848.5,1848.3,1.57881842]
[1746342156588,0.50587423,1848.4,1848.3,1.57881842]
[1746342158035,5.4099356,1848.5,1848.3,1.57881842]
[1746342158918,5.40979172,1848.5,1848.3,1.57881842]
[1746342159124,0.5058339,1848.4,1848.3,1.57881842]
[1746342159285,5.91591829,1848.4,1848.3,1.57881842]
[1746342159803,0.5058339,1848.4,1848.3,1.57881842]
[1746342166737,5.91591829,1848.4,1848.3,1.57881842]
[1746342166923,6.22005049,1848.4,1848.3,1.57881842]
[1746342172039,5.4103771,1848.3,1848.2,4.489]
[1746342172402,6.95627206,1848.3,1848.2,4.489]
[1746342173145,7.46210596,1848.3,1848.2,4.489]
[1746342175443,6.2203432,1848.3,1848.2,4.489]
[1746342182662,5.41125541,1848.0,1847.9,6.06781842]
[1746342182835,5.91708931,1848.0,1847.9,6.06781842]
[1746342183036,5.41176887,1847.9,1847.8,4.489]
[1746342183231,5.91760277,1847.9,1847.8,4.489]
[1746342183647,7.0809127,1847.9,1847.8,4.489]
[1746342183847,5.412134,1847.7,1847.6,19.503]
[1746342184052,5.41242693,1847.6,1847.5,4.489]
[1746342184272,6.22222278,1847.7,1847.5,4.489]
[1746342184435,0.5058339,1847.6,1847.5,4.489]
[1746342184833,5.91826083,1847.6,1847.5,4.489]
[1746342187373,0.5058339,1847.6,1847.5,4.489]
[1746342187577,5.41225668,1847.7,1847.5,4.489]
[1746342187759,5.41225668,1847.7,1847.6,1.57881842]
[1746342188147,5.91809413,1847.7,1847.6,1.57881842]
[1746342189576,5.91790859,1847.7,1847.6,1.57881842]
[1746342192191,0.50565191,1847.7,1847.6,1.57881842]
[1746342192491,5.91778591,1847.7,1847.6,1.57881842]
[1746342193484,5.412134,1847.7,1847.6,1.57881842]
[1746342194486,5.91768435,1847.7,1847.6,1.57881842]
[1746342200496,5.41242693,1847.6,1847.5,4.489]
[1746342200887,5.91797728,1847.6,1847.5,4.489]
[1746342202369,7.05098841,1847.6,1847.5,4.489]
[1746342202663,7.81778841,1847.6,1847.5,4.489]
[1746342202868,8.12149916,1847.6,1847.5,4.489]
[1746342205104,6.98848803,1847.6,1847.5,4.489]
[1746342205407,6.22168803,1847.6,1847.5,4.489]
[1746342208082,5.91797728,1847.6,1847.5,4.489]
[1746342209735,6.2221374,1847.6,1847.5,4.489]
[1746342209884,0.80971047,1847.6,1847.5,4.489]
[1746342210079,6.2221374,1847.6,1847.5,4.489]
[1746342212118,7.38556528,1847.6,1847.5,4.489]
[1746342213924,5.41301288,1847.4,1847.3,4.489]
[1746342214634,5.717173,1847.4,1847.3,4.489]
[1746342214822,6.22272335,1847.4,1847.3,4.489]
[1746342215131,0.80971047,1847.4,1847.3,4.489]
[1746342219029,6.22272335,1847.4,1847.3,4.489]
[1746342219207,7.38628539,1847.4,1847.3,4.489]
[1746342221535,0.80971047,1847.4,1847.3,4.489]
[1746342222650,6.22272335,1847.4,1847.3,4.489]
[1746342224258,0.80971047,1847.4,1847.3,4.489]
[1746342224609,6.22272335,1847.4,1847.3,4.489]
[1746342226051,5.4133059,1847.3,1847.1,1.57881842]
[1746342226261,5.41377653,1847.2,1847.1,1.57881842]
[1746342226563,0.30416012,1847.2,1847.1,1.57881842]
[1746342226855,0.80971047,1847.2,1847.1,1.57881842]
[1746342228720,0.50555035,1847.2,1847.1,1.57881842]
[1746342234838,0.50555035,1847.2,1847.1,8.90505624]
[1746342235752,5.41289544,1847.5,1847.1,3.4911642]
[1746342236048,5.41289544,1847.5,1847.3,1.57881842]
[1746342236462,0.50731435,1847.4,1847.3,1.57881842]
[1746342236810,6.22471592,1847.4,1847.3,1.57881842]
[1746342237014,0.81170304,1847.4,1847.3,1.57881842]
[1746342237934,6.22471592,1847.4,1847.3,1.57881842]
[1746342239021,0.81170304,1847.4,1847.3,1.57881842]
[1746342239223,0.81170304,1847.4,1847.3,2.39921842]
[1746342240669,6.22471592,1847.4,1847.3,2.39921842]
[1746342240831,6.22471592,1847.4,1847.3,1.57881842]
[1746342243839,5.41343684,1847.3,1847.1,1.57881842]
[1746342244021,5.41359896,1847.2,1847.1,1.57881842]
[1746342244427,5.92091331,1847.2,1847.1,1.57881842]
[1746342244858,6.22551444,1847.2,1847.1,1.57881842]
[1746342250058,5.41389204,1847.1,1847.0,4.488]
[1746342250776,5.92120639,1847.1,1847.0,4.488]
[1746342250957,0.50731435,1847.1,1847.0,4.488]
[1746342251264,0.81191548,1847.1,1847.0,4.488]
[1746342252142,0.50731435,1847.1,1847.0,4.488]
[1746342253480,0.50731435,1847.1,1847.0,5.23086236]
[1746342253681,0.50731435,1847.1,1847.0,11.46784752]
[1746342253861,8.41290948,1847.5,1847.1,6.23666213]
[1746342254061,8.41290948,1847.5,1847.3,1.57881842]
[1746342254256,0.50737418,1847.4,1847.3,1.57881842]
[1746342254970,0.81179465,1847.4,1847.3,1.57881842]
[1746342256687,6.22480753,1847.4,1847.3,1.57881842]
[1746342262986,0.81179465,1847.4,1847.3,1.57881842]
[1746342263289,6.22480753,1847.4,1847.3,1.57881842]
[1746342270990,5.4133059,1847.3,1847.2,4.486]
[1746342271389,5.71772637,1847.3,1847.2,4.486]
[1746342271701,6.22510055,1847.3,1847.2,4.486]
[1746342276906,5.71772637,1847.3,1847.2,4.486]
[1746342277088,0.81179619,1847.3,1847.2,4.486]
[1746342277667,0.50737572,1847.3,1847.2,4.486]
[1746342279501,0.81185559,1847.3,1847.2,4.486]
[1746342280869,6.22516149,1847.3,1847.2,4.486]
[1746342281071,7.38898906,1847.3,1847.2,4.486]
[1746342281504,7.38898906,1847.3,1847.2,5.84167207]
[1746342281888,6.22516149,1847.3,1847.2,5.84167207]
[1746342283514,6.22516149,1847.3,1847.2,4.486]
[1746342284706,0.81185559,1847.3,1847.2,4.486]
[1746342294341,0.81185559,1847.3,1847.1,6.84521535]
[1746342294847,0.50737572,1847.2,1847.1,6.84521535]
[1746342295307,0.50737572,1847.2,1847.1,8.07115515]
[1746342297327,0.50737572,1847.2,1847.1,6.84521535]
[1746342297527,0.81215486,1847.2,1847.1,6.84521535]
[1746342298651,0.50737572,1847.2,1847.1,6.84521535]
[1746342300448,0.50737572,1847.2,1847.1,6.06561535]
[1746342300761,0.81218319,1847.2,1847.1,6.06561535]
[1746342301249,6.22578215,1847.2,1847.1,4.484]
[1746342301456,7.47217034,1847.2,1847.1,4.484]
[1746342302430,6.22578215,1847.2,1847.1,4.484]
[1746342303752,6.22578215,1847.2,1847.1,5.83982652]
[1746342303753,0.81218319,1847.2,1847.1,5.83982652]
[1746342303920,6.22578215,1847.2,1847.1,5.83982652]
[1746342305835,6.22578215,1847.2,1847.1,4.484]
[1746342307648,6.22578215,1847.2,1847.1,5.83982652]
[1746342317967,7.47216505,1847.2,1847.1,5.83982652]
[1746342318284,8.24336505,1847.2,1847.1,4.484]
[1746342318437,5.41418516,1847.0,1846.9,5.83682652]
[1746342318867,5.92156088,1847.0,1846.9,5.83682652]
[1746342319057,6.22636835,1847.0,1846.9,5.83682652]
[1746342319868,5.92156088,1847.0,1846.9,5.83682652]
[1746342321361,0.50737572,1847.0,1846.9,5.83682652]
[1746342322388,5.92156088,1847.0,1846.9,5.83682652]
[1746342323591,6.22615417,1847.0,1846.9,5.83682652]
[1746342328153,6.22615417,1847.0,1846.9,4.481]
[1746342328389,6.22615417,1847.0,1846.9,5.83682652]
[1746342331001,6.22650815,1847.0,1846.9,5.83682652]
[1746342337706,6.22650815,1847.0,1846.9,1.35582652]
[1746342338908,2.73906787,1847.0,1846.6,4.479]
[1746342339070,2.73906787,1847.0,1846.7,0.01067055]
[1746342339071,5.41505725,1846.8,1846.7,0.01067055]
[1746342339272,5.71965054,1846.8,1846.7,0.01066997]
[1746342339472,6.22738024,1846.8,1846.7,0.01066997]
[1746342340093,6.22738024,1846.8,1846.7,1.36649649]
[1746342352043,6.22723555,1846.8,1846.7,1.36649649]
[1746342352926,6.22723555,1846.8,1846.7,0.01066997]
[1746342353130,7.391418,1846.8,1846.7,0.01066997]
[1746342354839,8.217118,1846.8,1846.7,0.01066997]
[1746342358447,8.217118,1846.8,1846.7,0.00145768]
[1746342359306,6.22723555,1846.8,1846.7,0.00145768]
[1746342369453,6.98253555,1846.8,1846.7,0.00145768]
[1746342369659,5.41579555,1846.5,1846.3,5.83282652]
[1746342369962,5.72039314,1846.4,1846.3,5.83282652]
[1746342370129,6.22812284,1846.4,1846.3,5.83282652]
[1746342370331,0.8121783,1846.4,1846.3,5.83282652]
[1746342371467,6.22812284,1846.4,1846.3,5.83282652]
[1746342376440,0.5077297,1846.4,1846.3,5.83282652]
[1746342377169,5.92367424,1846.4,1846.3,5.83282652]
[1746342378490,6.22811506,1846.4,1846.3,5.83282652]
[1746342379065,6.22811506,1846.4,1846.3,4.477]
[1746342379243,8.17491174,1846.4,1846.3,4.477]
[1746342379444,5.41653125,1846.2,1846.1,1.35582652]
[1746342379674,5.92426095,1846.2,1846.1,1.35582652]
[1746342379882,5.92426095,1846.2,1846.1,1.65916492]
[1746342380938,0.5077297,1846.2,1846.1,1.65916492]
[1746342381487,5.92426095,1846.2,1846.1,1.65916492]
[1746342384783,6.2285284,1846.2,1846.1,1.65916492]
[1746342387585,7.39301251,1846.2,1846.1,0.3033384]
[1746342387778,12.80979192,1846.2,1846.0,1.35582652]
[1746342388084,12.80979192,1846.2,1846.1,0.3052794]
[1746342388085,7.39301251,1846.2,1846.1,0.3052794]
[1746342388392,0.30426745,1846.2,1846.1,2.44420592]
[1746342388563,10.83155543,1846.5,1846.1,2.44420592]
[1746342388763,5.41565302,1846.5,1846.4,1.35582652]
[1746342388964,0.5068746,1846.4,1846.3,1.35582652]
[1746342389152,5.92281914,1846.4,1846.3,1.35582652]
[1746342389875,0.5068746,1846.4,1846.3,1.35582652]
[1746342391559,5.92285822,1846.4,1846.2,1.5832096]
[1746342392191,5.41598362,1846.4,1846.1,0.7831]
[1746342392382,5.41626967,1846.3,1846.1,1.08716615]
[1746342392582,5.92336854,1846.3,1846.1,1.08716615]
[1746342392995,5.41626967,1846.3,1846.1,1.08716615]
[1746342393491,5.41626967,1846.3,1846.1,0.30406615]
[1746342393990,10.83225978,1846.4,1846.1,0.30406615]
[1746342394192,5.41605522,1846.4,1846.1,0.30406615]
[1746342394356,10.83227852,1846.4,1846.1,0.30406615]
[1746342394657,5.92350665,1846.3,1846.1,0.30406615]
[1746342395172,5.41653125,1846.2,1846.1,0.30406615]
[1746342395377,6.17003125,1846.2,1846.1,0.30406615]
[1746342395576,5.41690261,1846.1,1845.9,4.478]
[1746342395776,5.41690261,1846.1,1846.0,0.30570951]
[1746342396087,5.92403127,1846.2,1846.0,2.67201911]
[1746342396290,0.50733678,1846.1,1846.0,2.67201911]
[1746342397200,5.41637222,1846.3,1846.0,2.67201911]
[1746342397572,0.50739275,1846.2,1846.0,2.67201911]
[1746342397897,0.50739275,1846.2,1846.1,0.7831]
[1746342398099,8.41616921,1846.4,1846.1,0.7831]
[1746342398308,8.41616921,1846.4,1846.2,1.5832096]
[1746342398472,0.50737047,1846.3,1846.2,1.5832096]
[1746342399804,0.81197657,1846.3,1846.2,1.5832096]
[1746342403886,6.22821445,1846.3,1846.2,1.5832096]
[1746342404204,0.81197657,1846.3,1846.2,1.5832096]
[1746342406899,0.81197657,1846.3,1846.2,1.88708857]
[1746342415621,6.22821445,1846.3,1846.2,1.88708857]
[1746342416123,0.81197657,1846.3,1846.2,0.30387897]
[1746342416498,0.81197657,1846.3,1846.1,0.7831]
[1746342416699,0.81197657,1846.3,1846.2,0.30387897]
[1746342417000,6.22821445,1846.3,1846.1,0.7831]
[1746342417209,0.50737047,1846.2,1846.1,0.7831]
[1746342421726,0.81230428,1846.2,1846.1,0.7831]
[1746342421923,0.81230428,1846.2,1846.0,6.0582096]
[1746342422328,0.50737047,1846.1,1846.0,6.0582096]
[1746342427620,0.50737047,1846.1,1846.0,5.83224255]
[1746342430631,0.50737047,1846.1,1846.0,6.13868006]
[1746342432831,0.50737047,1846.1,1846.0,0.30643751]
[1746342433127,1.18066975,1846.1,1845.9,5.83024255]
[1746342433299,0.50737047,1846.1,1846.0,0.30684201]
[1746342433499,0.30494008,1846.1,1846.0,1.66408456]
[1746342434127,0.81313662,1846.1,1846.0,1.66408456]
[1746342434530,0.50819654,1846.1,1846.0,1.66408456]
[1746342438710,0.50819654,1846.1,1846.0,7.08120265]
[1746342439011,6.18134992,1846.4,1846.0,2.90175482]
[1746342439208,9.18134992,1846.4,1846.3,1.35724255]
[1746342439638,9.48625077,1846.4,1846.3,1.35724255]
[1746342440025,9.99441512,1846.4,1846.3,1.35724255]
[1746342443042,9.22921512,1846.4,1846.3,1.35724255]
[1746342444768,5.41623788,1846.3,1846.2,1.35724255]
[1746342445067,5.92440223,1846.3,1846.2,1.66047427]
[1746342445564,6.22930308,1846.3,1846.2,1.66047427]
[1746342448174,6.22930308,1846.3,1846.2,0.30323172]
[1746342448531,6.22930308,1846.3,1846.1,5.83024255]
[1746342448877,5.72113873,1846.3,1846.2,0.30323172]
[1746342449070,5.72113873,1846.3,1846.1,5.83024255]
[1746342449253,6.22935298,1846.3,1846.2,0.30323172]
[1746342449572,6.22935298,1846.3,1846.1,5.83024255]
[1746342449730,6.22935298,1846.3,1846.2,0.30323172]
[1746342450070,6.22935298,1846.3,1846.1,5.83024255]
[1746342450276,6.22935298,1846.3,1846.2,0.30323172]
[1746342450475,5.92445213,1846.3,1846.1,5.83024255]
[1746342450630,0.50821425,1846.2,1846.1,5.83024255]